bitfinex/quotes_SOLUSD_20250118
["timestamp","ask_amount","ask_price","bid_price","bid_amount"]
[1737228333157,18.95313676,256.72,256.62,18.95313676]
[1737228333360,0.43875393,256.71,256.64,18.95313676]
[1737228333562,0.43875393,256.73,256.64,18.95313676]
[1737228334046,0.43875393,256.73,256.65,3.8963]
[1737228334251,24.21563793,256.73,256.65,3.8963]
[1737228334868,24.21563793,256.73,256.66,18.95313676]
[1737228335165,0.43875393,256.73,256.66,18.95313676]
[1737228335368,0.43875393,256.74,256.66,18.95313676]
[1737228335546,0.43875393,256.74,256.69,20.0]
[1737228335752,0.063,256.77,256.65,13.6371]
[1737228335753,0.063,256.76,256.73,18.95313676]
[1737228336000,0.063,256.76,256.75,18.95313676]
[1737228336253,0.063,256.76,256.75,22.84793676]
[1737228337363,0.063,256.76,256.75,3.8948]
[1737228338565,0.063,256.76,256.75,22.84793676]
[1737228339969,0.063,256.76,256.75,3.8948]
[1737228340175,0.063,256.76,256.75,22.84793676]
[1737228340362,0.063,256.76,256.75,23.43199471]
[1737228340687,0.0001,256.77,256.75,42.38513147]
[1737228342766,0.0001,256.77,256.75,47.38513147]
[1737228343462,0.0001,256.77,256.76,5.0]
[1737228344265,0.0001,256.77,256.75,23.43199471]
[1737228344758,0.0001,256.77,256.75,42.38513147]
[1737228347184,0.0001,256.77,256.75,3.8948]
[1737228347360,0.0001,256.77,256.73,3.895]
[1737228347857,0.0001,256.77,256.74,0.58420424]
[1737228348056,0.0001,256.77,256.75,18.95313676]
[1737228348257,0.0001,256.77,256.74,0.58420424]
[1737228348456,0.0001,256.77,256.7,18.95313676]
[1737228348882,0.0001,256.77,256.72,18.95313676]
[1737228349178,0.0001,256.77,256.62,18.95313676]
[1737228349179,0.0001,256.77,256.68,22.84893676]
[1737228349380,0.43885393,256.77,256.72,18.95313676]
[1737228349561,0.0001,256.77,256.72,18.95313676]
[1737228350382,0.0001,256.77,256.68,3.8958]
[1737228350383,0.0001,256.77,256.75,57.90627352]
[1737228350581,0.0001,256.77,256.76,0.58400694]
[1737228351162,0.0001,256.77,256.76,4.47860694]
[1737228352062,42.06,256.91,256.8,20.0]
[1737228352271,42.06,256.91,256.89,18.95313676]
[1737228353063,42.06,256.91,256.9,3.8925]
[1737228354082,65.836884,256.91,256.86,18.95313676]
[1737228354287,24.21563793,256.9,256.83,18.95313676]
[1737228354581,18.95313676,256.85,256.69,18.95313676]
[1737228354796,18.95313676,256.75,256.64,18.95313676]
[1737228354982,18.95313676,256.75,256.58,5.0784]
[1737228354983,23.776884,256.72,256.62,18.95313676]
[1737228355166,23.776884,256.7,256.6,18.95313676]
[1737228355372,0.73066144,256.69,256.6,18.95313676]
[1737228356805,0.73066144,256.69,256.61,3.8969]
[1737228356997,0.73066144,256.69,256.62,18.95313676]
[1737228357311,0.73054348,256.68,256.62,18.95313676]
[1737228357511,23.776884,256.67,256.58,30.84383957]
[1737228357692,23.776884,256.65,256.58,0.03]
[1737228357892,23.776884,256.63,256.58,0.03]
[1737228358087,54.59072357,256.61,256.58,0.03]
[1737228358301,54.59072357,256.59,256.58,0.03]
[1737228358902,23.776884,256.59,256.58,0.03]
[1737228359126,24.50777595,256.59,256.58,0.03]
[1737228360090,30.81383957,256.61,256.58,0.03]
[1737228360091,0.73084603,256.6,256.58,0.03]
[1737228360401,54.59072357,256.63,256.58,0.03]
[1737228360589,23.776884,256.61,256.58,0.03]
[1737228360779,0.73089983,256.6,256.58,0.03]
[1737228362401,0.73084271,256.62,256.58,0.03]
[1737228362977,23.776884,256.61,256.58,0.03]
[1737228363179,0.73080483,256.6,256.58,0.03]
[1737228363690,24.50766831,256.61,256.58,0.03]
[1737228363990,0.73077798,256.64,256.58,30.84383957]
[1737228364189,0.73070871,256.67,256.58,30.84383957]
[1737228364392,23.776884,256.66,256.58,30.84383957]
[1737228364598,0.73072987,256.65,256.58,30.84383957]
[1737228365776,0.73072987,256.65,256.58,0.03]
[1737228366009,30.81383957,256.62,256.58,0.03]
[1737228366180,23.776884,256.64,256.58,0.03]
[1737228366181,0.73088831,256.61,256.58,0.03]
[1737228366497,23.776884,256.62,256.58,0.03]
[1737228366796,0.73077068,256.61,256.58,0.03]
[1737228367299,24.50764595,256.62,256.58,0.03]
[1737228367586,0.73076195,256.62,256.58,0.03]
[1737228367791,30.81383957,256.66,256.58,0.03]
[1737228367987,23.776884,256.64,256.58,30.84383957]
[1737228368193,30.81383957,256.68,256.59,0.43859751]
[1737228368389,0.73063417,256.67,256.6,30.81383957]
[1737228368595,0.73063417,256.69,256.6,30.81383957]
[1737228368774,0.73063417,256.69,256.61,0.43850531]
[1737228368972,54.59072357,256.68,256.58,30.84383957]
[1737228369188,0.73071749,256.67,256.58,30.84383957]
[1737228369390,23.776884,256.65,256.58,0.03]
[1737228369592,0.7307399,256.64,256.58,0.03]
[1737228369774,24.50755643,256.65,256.58,30.84383957]
[1737228370097,24.50755643,256.65,256.59,3.8972]
[1737228370774,0.73069595,256.67,256.59,4.33593797]
[1737228371079,30.81383957,256.72,256.62,50.81383957]
[1737228371272,0.73047963,256.73,256.65,30.81383957]
[1737228371473,42.08,256.75,256.62,20.0]
[1737228371474,42.08,256.75,256.67,30.81383957]
[1737228371673,42.08,256.75,256.69,30.81383957]
[1737228372072,42.08,256.75,256.7,3.8955]
[1737228372272,0.79335963,256.77,256.7,4.33362295]
[1737228372473,0.063,256.77,256.73,50.81383957]
[1737228372679,0.063,256.77,256.74,0.43778329]
[1737228372975,0.063,256.77,256.75,30.81383957]
[1737228373276,30.81383957,256.77,256.59,17.4129]
[1737228373483,23.776884,256.69,256.6,34.71093957]
[1737228373679,23.776884,256.67,256.6,3.8971]
[1737228373887,0.73065494,256.66,256.6,3.8971]
[1737228374079,5.0,256.76,256.6,3.8971]
[1737228374080,30.81383957,256.7,256.61,0.43859039]
[1737228374288,3.8944,256.78,256.62,30.81383957]
[1737228374289,0.73057394,256.69,256.62,30.81383957]
[1737228374684,0.7305605,256.7,256.63,0.43846708]
[1737228374987,0.7305605,256.7,256.62,31.25222699]
[1737228375289,0.73050705,256.71,256.62,31.25222699]
[1737228375489,0.73050705,256.71,256.65,20.0]
[1737228375685,0.73050705,256.71,256.62,31.25222699]
[1737228375686,30.81383957,256.85,256.72,20.0]
[1737228375891,30.81383957,256.87,256.78,30.81383957]
[1737228376093,31.1059935,256.91,256.83,20.0]
[1737228376392,0.29215393,256.91,256.84,31.39780501]
[1737228376693,0.29215393,256.91,256.82,50.81383957]
[1737228376895,0.29215393,256.91,256.83,0.58395679]
[1737228377292,0.29215393,256.91,256.82,50.81383957]
[1737228377499,0.29215393,256.91,256.84,20.0]
[1737228378202,0.29215393,256.91,256.85,3.8933]
[1737228378599,0.29215393,256.95,256.86,0.58397392]
[1737228378810,0.29215393,256.95,256.87,19.51672328]
[1737228379187,24.06903793,256.97,256.87,19.51672328]
[1737228379601,0.29215393,256.97,256.87,19.51672328]
[1737228379804,18.99580907,257.0,256.89,18.93280907]
[1737228379987,18.93280907,256.98,256.89,18.93280907]
[1737228380304,24.06903793,256.97,256.88,3.8928]
[1737228381018,0.063,257.0,256.98,20.0]
[1737228381207,0.063,257.0,256.99,19.51642254]
[1737228381388,0.0001,257.0,256.99,19.51642254]
[1737228381589,0.0001,257.0,256.99,18.93280907]
[1737228382186,0.0001,257.0,256.99,3.8912]
[1737228382593,0.0001,257.0,256.97,3.8914]
[1737228382803,0.0001,257.0,256.92,3.8922]
[1737228383000,0.29225393,257.0,256.92,3.8922]
[1737228383509,0.29225393,257.0,256.92,34.63353017]
[1737228383905,0.29225393,257.0,256.94,30.74133017]
[1737228384104,0.0001,257.0,256.94,31.32500689]
[1737228384401,0.0001,257.0,256.95,3.8918]
[1737228384796,0.0001,257.0,256.94,25.21680689]
[1737228384983,0.0001,257.0,256.96,30.74133017]
[1737228385181,0.0001,257.0,256.97,0.58363616]
[1737228385395,0.0001,257.0,256.98,30.74133017]
[1737228385597,0.0001,257.0,256.92,30.74133017]
[1737228385900,23.776884,256.92,256.85,0.58379483]
[1737228386090,31.0334841,256.91,256.81,30.74133017]
[1737228386299,31.0334841,256.91,256.8,3.894]
[1737228386300,30.74133017,256.89,256.8,3.894]
[1737228386486,0.29215393,256.88,256.8,3.894]
[1737228386681,23.776884,256.82,256.74,30.74133017]
[1737228386984,0.29215393,256.81,256.72,34.63653017]
[1737228387303,0.29215393,256.81,256.7,35.22109678]
[1737228387506,30.74133017,256.83,256.72,30.74133017]
[1737228387800,30.74133017,256.83,256.68,30.74133017]
[1737228387801,23.776884,256.78,256.68,30.74133017]
[1737228388109,23.776884,256.76,256.68,30.74133017]
[1737228388408,0.29215393,256.75,256.68,30.74133017]
[1737228388589,23.776884,256.7,256.61,35.62283017]
[1737228388793,23.776884,256.68,256.58,30.77133017]
[1737228388990,23.776884,256.66,256.58,0.03]
[1737228389195,23.776884,256.64,256.58,0.03]
[1737228389394,0.29215393,256.63,256.58,0.03]
[1737228390407,30.74133017,256.67,256.58,35.25320275]
[1737228390597,30.74133017,256.61,256.58,0.03]
[1737228390789,54.51821417,256.59,256.58,0.03]
[1737228391813,54.8103681,256.59,256.58,0.03]
[1737228393109,58.7075681,256.59,256.58,0.03]
[1737228393307,0.29215393,256.61,256.58,0.03]
[1737228393609,30.74133017,256.67,256.58,0.03]
[1737228393789,0.29215393,256.66,256.59,30.74133017]
[1737228393991,24.06903793,256.68,256.59,30.74133017]
[1737228394206,0.29215393,256.68,256.6,0.58457181]
[1737228394412,0.29215393,256.68,256.59,30.74133017]
[1737228394586,23.776884,256.64,256.58,0.03]
[1737228394787,0.29215393,256.63,256.58,0.03]
[1737228395688,24.06903793,256.64,256.58,0.03]
[1737228396811,0.29215393,256.64,256.58,0.03]
[1737228397107,30.74133017,256.62,256.58,0.03]
[1737228397413,24.06903793,256.61,256.58,0.03]
[1737228397594,0.29215393,256.61,256.58,0.03]
[1737228397798,0.29215393,256.63,256.58,0.03]
[1737228398109,24.06903793,256.63,256.58,0.03]
[1737228398409,23.776884,256.61,256.58,0.03]
[1737228398598,0.29215393,256.6,256.58,0.03]
[1737228400605,20.0,256.59,256.58,0.03]
[1737228400805,20.0,256.56,256.54,0.03]
[1737228401108,0.29215393,256.58,256.54,0.03]
[1737228401296,31.0334841,256.58,256.54,0.03]
[1737228401691,0.29215393,256.58,256.54,0.03]
[1737228402108,24.06903793,256.61,256.54,0.03]
[1737228402305,0.29215393,256.61,256.54,0.03]
[1737228402511,0.29215393,256.63,256.54,30.77133017]
[1737228403607,0.29215393,256.63,256.56,30.74133017]
[1737228403809,0.29215393,256.65,256.56,30.74133017]
[1737228404618,24.06903793,256.65,256.56,30.74133017]
[1737228404812,24.06903793,256.65,256.54,0.03]
[1737228404813,23.776884,256.61,256.54,0.03]
[1737228405005,0.29215393,256.6,256.54,0.03]
[1737228405401,0.29215393,256.6,256.54,3.9279]
[1737228406123,23.776884,256.55,256.54,0.03]
[1737228406417,24.06903793,256.55,256.54,0.03]
[1737228406798,0.29215393,256.55,256.54,0.03]
[1737228407195,0.29215393,256.59,256.54,0.03]
[1737228407399,0.29215393,256.61,256.54,0.03]
[1737228407600,24.06903793,256.63,256.55,30.74133017]
[1737228408602,0.29215393,256.63,256.55,30.74133017]
[1737228409002,30.74133017,256.64,256.54,0.03]
[1737228409222,0.29215393,256.63,256.54,0.03]
[1737228409399,0.29215393,256.63,256.57,30.74133017]
[1737228409601,0.29215393,256.65,256.58,3.8974]
[1737228409802,24.06903793,256.65,256.56,20.0]
[1737228410120,30.74133017,256.59,256.54,0.03]
[1737228410298,24.06903793,256.58,256.54,0.03]
[1737228410720,0.29215393,256.58,256.54,0.03]
[1737228411205,24.06903793,256.6,256.54,0.03]
[1737228411410,54.51821417,256.55,256.49,0.03]
[1737228411612,54.51821417,256.5,256.49,0.03]
[1737228412121,23.776884,256.49,256.45,0.03]
[1737228412305,54.51821417,256.46,256.45,0.03]
[1737228413026,0.29215393,256.48,256.45,0.03]
[1737228413199,24.06903793,256.49,256.45,0.03]
[1737228415301,0.29215393,256.51,256.45,0.03]
[1737228415713,24.06903793,256.51,256.45,3.9293]
[1737228415907,3.8977,256.56,256.46,0.58484412]
[1737228415908,30.74133017,256.56,256.46,0.58484412]
[1737228416098,30.74133017,256.56,256.45,54.67063017]
[1737228416099,30.74133017,256.51,256.45,0.03]
[1737228416315,30.74133017,256.49,256.45,0.03]
[1737228416513,0.29215393,256.48,256.45,0.03]
[1737228416724,24.06903793,256.5,256.45,0.03]
[1737228417223,30.74133017,256.53,256.45,0.03]
[1737228417404,0.29215393,256.52,256.45,0.03]
[1737228418130,30.74133017,256.49,256.45,0.03]
[1737228418319,30.74133017,256.46,256.45,0.03]
[1737228418627,0.29215393,256.51,256.45,0.03]
[1737228420324,0.29215393,256.52,256.46,30.74133017]
[1737228420513,0.29215393,256.52,256.45,0.03]
[1737228420925,0.29215393,256.52,256.45,0.61487373]
[1737228421146,0.29215393,256.52,256.45,0.03]
[1737228421316,0.29215393,256.54,256.46,30.74133017]
[1737228421614,0.29215393,256.54,256.47,20.0]
[1737228421810,24.06903793,256.54,256.47,20.0]
[1737228422228,0.29215393,256.54,256.47,30.74133017]
[1737228422427,24.06903793,256.56,256.47,30.74133017]
[1737228423033,24.06903793,256.56,256.48,4.48369904]
[1737228423233,0.29215393,256.6,256.54,30.74133017]
[1737228423429,42.183,256.61,256.54,30.74133017]
[1737228423622,42.183,256.61,256.49,31.32609587]
[1737228423623,42.183,256.61,256.56,30.74133017]
[1737228423827,0.063,256.61,256.56,30.74133017]
[1737228424418,0.063,256.61,256.57,3.8975]
[1737228424815,0.063,256.61,256.58,30.74133017]
[1737228425010,0.063,256.61,256.53,8.709]
[1737228425328,24.13203793,256.61,256.54,30.74133017]
[1737228425927,0.063,256.61,256.58,30.74133017]
[1737228426131,0.063,256.61,256.6,30.74133017]
[1737228426335,0.063,256.61,256.6,34.63843017]
[1737228428629,0.063,256.61,256.58,30.74133017]
[1737228429335,0.063,256.61,256.6,30.74133017]
[1737228429632,0.063,256.61,256.58,50.74133017]
[1737228429846,0.063,256.61,256.55,3.8977]
[1737228430048,0.35515393,256.61,256.55,3.8977]
[1737228430346,0.063,256.61,256.59,30.74133017]
[1737228431033,0.063,256.61,256.55,4.48236085]
[1737228431034,0.063,256.61,256.57,30.74133017]
[1737228431431,0.063,256.61,256.55,4.48231041]
[1737228431432,0.063,256.61,256.59,18.96942723]
[1737228432132,0.063,256.61,256.6,3.8971]
[1737228432935,0.063,256.61,256.56,0.58449348]
[1737228432936,0.063,256.61,256.57,18.96942723]
[1737228433828,0.063,256.61,256.56,3.8975]
[1737228434023,0.063,256.61,256.56,22.86692723]
[1737228434526,23.776884,256.6,256.53,4.811]
[1737228434731,0.29215393,256.59,256.53,4.811]
[1737228435147,0.29215393,256.59,256.53,8.7091]
[1737228436334,24.13203793,256.61,256.53,8.7091]
[1737228436534,28.02903793,256.61,256.53,8.7091]
[1737228437138,46.99846516,256.61,256.52,18.96942723]
[1737228437451,46.99846516,256.61,256.52,22.86762723]
[1737228438343,0.063,256.61,256.54,18.96942723]
[1737228438646,0.063,256.61,256.56,18.96942723]
[1737228439144,0.063,256.61,256.57,0.58459599]
[1737228439349,0.063,256.61,256.56,19.55399189]
[1737228439646,0.063,256.61,256.6,38.96942723]
[1737228440142,0.29215393,256.72,256.6,38.96942723]
[1737228440349,0.29215393,256.72,256.66,18.96942723]
[1737228440535,0.29215393,256.72,256.64,22.86582723]
[1737228440731,27.96433793,256.72,256.64,18.96942723]
[1737228440937,23.776884,256.71,256.64,22.86582723]
[1737228441142,0.29215393,256.7,256.64,22.86582723]
[1737228441640,0.29215393,256.7,256.64,3.8964]
[1737228442729,0.29215393,256.72,256.66,18.96942723]
[1737228443654,0.29215393,256.73,256.66,18.96942723]
[1737228443846,0.29215393,256.77,256.68,18.96942723]
[1737228444152,24.06903793,256.77,256.68,18.96942723]
[1737228444322,0.063,256.7,256.69,0.58429341]
[1737228444531,14.7956,256.87,256.72,20.0]
[1737228444532,18.96942723,256.84,256.72,20.0]
[1737228444849,0.29215393,256.83,256.75,18.96942723]
[1737228445630,0.29215393,256.84,256.75,18.96942723]
[1737228446155,0.29215393,256.84,256.75,23.44828355]
[1737228446446,27.96253793,256.84,256.73,23.44856237]
[1737228446628,18.96942723,256.83,256.73,18.96942723]
[1737228446833,24.06903793,256.82,256.73,19.55365091]
[1737228447147,0.29215393,256.82,256.75,18.96942723]
[1737228447651,0.29215393,256.82,256.75,13.96942723]
[1737228447852,0.29215393,256.83,256.73,18.96942723]
[1737228448240,23.776884,256.82,256.73,22.86442723]
[1737228448440,0.29215393,256.81,256.73,22.86442723]
[1737228448641,0.29215393,256.81,256.74,0.58422232]
[1737228449049,0.29215393,256.83,256.74,0.58422232]
[1737228449648,23.776884,256.82,256.73,18.96942723]
[1737228449849,24.06903793,256.82,256.74,0.58419684]
[1737228450050,0.29215393,256.82,256.75,18.96942723]
[1737228450255,24.06903793,256.84,256.75,22.86422723]
[1737228450445,0.29215393,256.84,256.75,22.86422723]
[1737228450651,0.29215393,256.84,256.76,0.58415732]
[1737228450851,24.06903793,256.86,256.76,0.58415732]
[1737228451541,0.29215393,256.86,256.77,22.86392723]
[1737228451857,0.063,256.87,256.81,18.96942723]
[1737228452034,0.063,256.87,256.83,18.96942723]
[1737228452461,0.063,256.87,256.84,0.58395289]
[1737228453155,0.063,256.87,256.85,22.86272723]
[1737228453362,0.063,256.87,256.86,0.58380909]
[1737228454255,0.063,256.87,256.85,23.44659697]
[1737228454447,0.063,256.87,256.85,3.8933]
[1737228454958,0.063,256.87,256.86,0.58393193]
[1737228457744,0.063,256.87,256.85,3.8933]
[1737228458058,0.063,256.87,256.86,0.58396293]
[1737228459054,0.0001,256.87,256.86,0.58396293]
[1737228459259,0.0001,256.87,256.85,4.47701388]
[1737228459439,0.0001,256.87,256.85,22.86272723]
[1737228459637,0.0001,256.87,256.86,0.58388668]
[1737228465759,0.0001,256.87,256.86,4.47698668]
[1737228466067,0.0001,256.87,256.85,18.96942723]
[1737228466262,0.0001,256.87,256.82,0.58379006]
[1737228466263,0.0001,256.87,256.83,22.86302723]
[1737228466563,0.0001,256.87,256.84,0.58392631]
[1737228467743,0.0001,256.87,256.85,18.96942723]
[1737228467944,0.0001,256.87,256.86,0.58388149]
[1737228470062,0.0001,256.87,256.86,4.47698149]
[1737228470445,18.96952723,256.87,256.79,4.47794133]
[1737228470758,24.06903793,256.86,256.77,4.47844015]
[1737228471103,23.776884,256.84,256.79,20.0]
[1737228471247,23.776884,256.84,256.76,19.55350822]
[1737228471248,24.06903793,256.84,256.76,19.55350822]
[1737228472066,24.06903793,256.84,256.76,23.44810822]
[1737228473050,0.29215393,256.84,256.76,23.44810822]
[1737228473250,0.0001,256.87,256.82,18.96942723]
[1737228473765,0.0001,256.87,256.83,0.58397697]
[1737228473965,0.0001,256.87,256.84,18.96942723]
[1737228474150,0.0001,256.87,256.85,0.58389222]
[1737228475354,0.0001,256.87,256.86,18.96942723]
[1737228476169,0.0001,256.87,256.86,22.86252723]
[1737228478459,23.776984,256.87,256.78,18.96942723]
[1737228478778,18.96942723,256.86,256.79,0.58407886]
[1737228479072,23.776884,256.85,256.79,0.58407886]
[1737228479471,23.776984,256.87,256.79,0.61407886]
[1737228479672,23.776984,256.87,256.8,18.96942723]
[1737228479874,23.776984,256.87,256.81,0.58398011]
[1737228480058,23.776984,256.87,256.8,0.58398059]
[1737228480259,24.06913793,256.87,256.8,0.58398059]
[1737228480573,27.96213793,256.87,256.8,0.58398059]
[1737228483265,24.06913793,256.87,256.8,0.58398059]
[1737228483780,24.06913793,256.87,256.8,19.55340782]
[1737228484183,24.06913793,256.87,256.8,23.44740782]
[1737228484878,24.06913793,256.87,256.8,4.47798059]
[1737228485180,0.0001,256.87,256.82,18.96942723]
[1737228485380,0.0001,256.87,256.83,0.58395596]
[1737228485583,0.0001,256.87,256.83,4.47755596]
[1737228486179,0.0001,256.87,256.84,18.96942723]
[1737228486368,0.0001,256.87,256.85,0.58388134]
[1737228486571,0.0001,256.87,256.86,18.96942723]
[1737228487485,0.0001,256.87,256.86,22.86252723]
[1737228490013,0.0001,256.87,256.86,39.74242723]
[1737228490917,0.0001,256.94,256.93,5.0]
[1737228491118,0.0001,257.0,256.93,19.55294241]
[1737228491303,0.0001,257.0,256.99,18.96942723]
[1737228492105,0.0001,257.0,256.99,22.86062723]
[1737228492797,0.0001,257.0,256.99,23.44406209]
[1737228494480,0.0001,257.0,256.99,28.44406209]
[1737228495197,0.0001,257.0,256.99,23.44406209]
[1737228495382,0.0001,257.0,256.99,22.86062723]
[1737228495783,0.0001,257.0,256.89,0.58352808]
[1737228496112,0.0001,257.0,256.92,18.96942723]
[1737228496272,0.0001,257.0,256.95,18.96942723]
[1737228496473,0.0001,257.0,256.97,18.96942723]
[1737228496671,0.0001,257.0,256.98,0.583595]
[1737228497096,0.0001,257.0,256.99,18.96942723]
[1737228498094,0.0001,257.0,256.99,20.0]
[1737228498399,0.0001,257.0,256.99,42.86062723]
[1737228498694,0.0001,257.03,256.99,71.42265446]
[1737228498884,0.0001,257.03,257.02,5.0]
[1737228499195,0.0001,257.03,257.02,24.55271086]
[1737228499387,0.063,257.08,257.05,5.0]
[1737228499695,0.063,257.08,257.07,38.96942723]
[1737228500388,0.063,257.08,257.06,0.5832106]
[1737228500389,3.9529,257.08,257.06,0.5832106]
[1737228500595,23.776884,257.07,256.96,18.96942723]
[1737228500801,22.92232723,257.08,256.92,8.4847]
[1737228500802,18.96942723,257.03,256.93,0.58367944]
[1737228500973,0.29215393,257.02,256.94,0.58374383]
[1737228501176,24.06903793,257.02,256.94,0.58374383]
[1737228501395,23.776884,257.02,256.94,19.55317106]
[1737228501590,3.9529,257.08,256.96,18.96942723]
[1737228501591,18.96942723,257.07,256.96,18.96942723]
[1737228501790,23.776884,257.06,256.98,18.96942723]
[1737228501990,0.063,257.08,257.0,18.96942723]
[1737228502191,0.063,257.08,257.02,18.96942723]
[1737228502387,0.063,257.08,257.03,0.58350596]
[1737228502997,0.063,257.08,257.02,3.8906]
[1737228502998,0.063,257.08,257.0,18.96942723]
[1737228503196,23.776884,257.06,256.96,19.55290474]
[1737228503402,23.776884,257.06,256.88,18.96942723]
[1737228503403,23.776884,257.04,256.94,18.99942723]
[1737228503582,23.776884,257.02,256.95,0.58368058]
[1737228503783,23.839884,257.02,256.95,0.58368058]
[1737228503987,23.839884,257.02,256.95,20.58368058]
[1737228504296,23.776884,257.0,256.94,0.03]
[1737228504481,0.063,257.02,256.94,18.99942723]
[1737228504687,0.063,257.02,256.98,18.96942723]
[1737228504897,0.063,257.02,256.99,0.58357422]
[1737228506710,0.063,257.02,257.0,18.96942723]
[1737228506879,0.063,257.02,257.01,0.58350642]
[1737228507898,0.063,257.02,256.97,4.47471642]
[1737228508189,0.35515393,257.02,256.94,3.9219]
[1737228508500,0.35515393,257.02,256.95,0.58369919]
[1737228508899,0.063,257.08,257.01,28.96942723]
[1737228509086,0.063,257.08,257.07,18.96942723]
[1737228509290,0.063,257.13,257.1,20.0]
[1737228509601,0.063,257.13,257.11,19.55271824]
[1737228510186,0.063,257.2,257.11,19.55271824]
[1737228510187,0.063,257.2,257.14,20.0]
[1737228510401,0.063,257.2,257.12,16.8749]
[1737228510402,11.7512834,257.45,257.42,8.8847]
[1737228510600,68.51198548,257.59,257.48,5.0]
[1737228510904,123.39119724,257.55,257.54,5.0]
[1737228511094,88.94146545,257.55,257.51,0.58227654]
[1737228511407,3.8798,257.74,257.54,30.57952082]
[1737228511583,46.5,257.78,257.67,30.57952082]
[1737228511784,51.5,257.78,257.69,30.57952082]
[1737228511987,23.776884,257.75,257.68,7.84574512]
[1737228512209,23.776884,257.77,257.54,30.57952082]
[1737228512210,5.0,257.71,257.61,30.57952082]
[1737228512502,15.57362402,257.71,257.61,30.57952082]
[1737228512687,44.78882117,257.78,257.62,10.18568175]
[1737228512888,24.48940233,257.77,257.62,10.18568175]
[1737228513100,11.7,257.7,257.62,8.68e-05]
[1737228513308,20.0,257.6,257.47,30.57952082]
[1737228513515,30.57952082,257.52,257.43,5.0]
[1737228513692,30.57952082,257.54,257.46,5.0]
[1737228513887,30.57952082,257.56,257.51,11.81653209]
[1737228514292,30.57952082,257.58,257.51,11.81653209]
[1737228514508,30.57952082,257.56,257.51,11.81653209]
[1737228514733,30.57952082,257.56,257.48,5.0]
[1737228514923,30.57952082,257.49,257.4,5.0]
[1737228515346,23.776884,257.48,257.42,5.0]
[1737228515824,30.57952082,257.49,257.42,5.0]
[1737228516009,30.57952082,257.49,257.4,5.0]
[1737228516010,23.776884,257.48,257.4,5.0]
[1737228516212,30.57952082,257.45,257.39,5.0]
[1737228516439,23.776884,257.44,257.36,5.0]
[1737228516607,30.57952082,257.43,257.36,5.0]
[1737228516811,23.776884,257.38,257.3,5.0]
[1737228517032,30.57952082,257.41,257.37,5.0]
[1737228517328,30.57952082,257.42,257.32,5.0]
[1737228517519,30.57952082,257.4,257.34,20.0]
[1737228517831,2.63168338,257.4,257.34,20.0]
[1737228518019,23.776884,257.39,257.3,5.0]
[1737228518211,30.57952082,257.36,257.28,5.0]
[1737228518610,2.63168338,257.39,257.25,35.57952082]
[1737228518611,30.57952082,257.32,257.25,5.0]
[1737228518919,27.662584,257.35,257.15,0.58304468]
[1737228518920,23.776884,257.29,257.2,5.0]
[1737228519097,23.776884,257.27,257.2,5.0]
[1737228519301,30.57952082,257.28,257.24,5.0]
[1737228519508,7.89505014,257.26,257.24,5.0]
[1737228519804,7.89505014,257.26,257.23,30.57952082]
[1737228520112,7.89505014,257.25,257.24,5.0]
[1737228520415,7.89505014,257.25,257.24,10.0]
[1737228520609,7.89505014,257.25,257.24,14.47051352]
[1737228520791,7.89505014,257.25,257.24,10.58311352]
[1737228521403,7.89505014,257.25,257.24,5.0]
[1737228521600,23.776884,257.34,257.27,20.0]
[1737228522101,23.776884,257.34,257.27,5.0]
[1737228522307,41.98,257.38,257.32,5.0]
[1737228522516,30.57952082,257.41,257.34,5.0]
[1737228522713,30.57952082,257.39,257.34,5.0]
[1737228522912,23.776884,257.38,257.28,5.0]
[1737228523115,23.776884,257.35,257.27,30.57952082]
[1737228523322,23.776884,257.35,257.29,20.0]
[1737228523505,50.1411301,257.36,257.29,25.0]
[1737228523808,30.57952082,257.36,257.28,25.0]
[1737228524112,2.63123454,257.34,257.25,25.45491893]
[1737228524305,2.63123454,257.34,257.27,30.57952082]